lending/lending_fUSD_20240110
["ID","MTS","AMOUNT","RATE_DAILY","PERIOD"]
[310996769,1704845440800,-203.0,0.00036929,24]
[310996770,1704845440809,-888.4011,0.00036948,6]
[310996771,1704845440818,-1000.0,0.00036986,2]
[310996772,1704845440827,-300.0,0.00036999,2]
[310996773,1704845440836,-300.0,0.00036999,2]
[310996774,1704845440846,-300.0,0.00036999,2]
[310996775,1704845440855,-300.0,0.00036999,2]
[310996776,1704845440864,-305.84192038,0.00036999,2]
[310996777,1704845440873,-667.33870884,0.00037,7]
[310996778,1704845440882,-810.0,0.00037,2]
[310996779,1704845440891,-351.8,0.00037,2]
[310996780,1704845440901,-500.0,0.00037,2]
[310996781,1704845440909,-247.51821648,0.00037,5]
[310996782,1704845440919,-345.91472599,0.00037,120]
[310996783,1704845440927,-209.51916391,0.00037,30]
[310996784,1704845440937,-650.0,0.00037,3]
[310996785,1704845440946,-55555.0,0.00037045,3]
[310996786,1704845440955,-888.4011,0.00037048,6]
[310996787,1704845440964,-10959.74636819,0.00037056,2]
[310996788,1704845440973,-254.99520187,0.0003706,2]
[310996789,1704845440982,-3189.66,0.00037075,2]
[310996790,1704845440991,-1500.0,0.000371,23]
[310996791,1704845441000,-276.431819,0.000371,2]
[310996792,1704845441010,-967.152292,0.0003711,2]
[310996793,1704845441019,-10789.35201072,0.00037139,4]
[310996794,1704845441029,-13293.44639488,0.00037139,4]
[310996795,1704845441038,-4616.27089741,0.0003714,4]
[310996796,1704845441047,-580.80321114,0.0003714,4]
[310996797,1704845441056,-333.56891715,0.0003714,4]
[310996798,1704845441065,-155.0,0.0003714,2]
[310996799,1704845441074,-888.4011,0.00037148,6]
[310996800,1704845441083,-175.40181905,0.0003715,120]
[310996801,1704845441092,-195.20090824,0.0003715,31]
[310996802,1704845441101,-1435.48980193,0.0003715,120]
[310996803,1704845441110,-2734.15869371,0.0003715,60]
[310996804,1704845441118,-1401.18561515,0.0003715,2]
[310996805,1704845441128,-900.0,0.0003715,3]
[310996806,1704845441137,-1650.17612534,0.0003715,120]
[310996807,1704845441147,-54580.65957157,0.0003715,2]
[310996808,1704845441155,-180.9006176,0.0003715,120]
[310996809,1704845441165,-55140.20905455,0.0003715,120]
[310996810,1704845441174,-158.68611755,0.0003715,120]
[310996811,1704845441183,-31153.29266227,0.0003715,30]
[310996812,1704845441192,-4196.34957623,0.0003715,120]
[310996813,1704845441201,-9428.9850126,0.0003715,60]
[310996814,1704845441210,-7549.33974606,0.0003715,2]
[310996815,1704845441219,-48357.66647886,0.0003715,2]
[310996816,1704845441228,-386.38638849,0.0003715,3]
[310996817,1704845441237,-153.99504201,0.0003715,120]
[310996818,1704845441246,-500.0,0.0003715,120]
[310996819,1704845441255,-10282.26587039,0.0003715,2]
[310996820,1704845441265,-426.99434277,0.0003715,2]
[310996821,1704845441275,-3180.6266193,0.0003715,30]
[310996822,1704845441284,-540.6474253,0.0003715,60]
[310996823,1704845441293,-12183.39279293,0.0003715,120]
[310996824,1704845441302,-446.36145622,0.0003715,120]
[310996825,1704845441311,-324.7220536,0.0003715,60]
[310996826,1704845441320,-875.05203853,0.0003715,10]
[310996827,1704845441329,-5104.50441662,0.0003715,120]
[310996828,1704845441338,-215.50609417,0.0003715,30]
[310996829,1704845441347,-50131.49095591,0.0003715,120]
[310996830,1704845441356,-303.70178349,0.0003715,15]
[310996831,1704845441365,-152.43963118,0.0003715,120]
[310996832,1704845441374,-756.0,0.0003715,120]
[310996833,1704845441384,-1937.236888,0.0003715,30]
[310996834,1704845441392,-304.856372,0.0003715,30]
[310996835,1704845441402,-4774.67028663,0.0003715,30]
[310996836,1704845441410,-4470.75019587,0.0003715,30]
[310996837,1704845441420,-1965.399855,0.0003715,30]
[310996838,1704845441428,-161.72403562,0.00037161,2]
[310996839,1704845441437,-888.4011,0.00037248,6]
[310996840,1704845441446,-1000.0,0.0003726,4]
[310996841,1704845441455,-157.46353718,0.00037319,7]
[310996842,1704845441465,-888.4011,0.00037348,6]
[310996843,1704845441474,-967.152292,0.00037358,2]
[310996844,1704845441483,-153.84,0.00037443,2]
[310996845,1704845441493,-888.4011,0.00037448,6]
[310996846,1704845441502,-969.36555761,0.000375,5]
[310996847,1704845441512,-1541.28906699,0.00037532,2]
[310996848,1704845441521,-1000.0,0.00037534,6]
[310996849,1704845441531,-888.4011,0.00037548,6]
[310996851,1704845441541,-170.18,0.00037573,2]
[310996852,1704845441551,-967.152292,0.00037607,2]
[310996853,1704845441561,-152.66700614,0.00037627,7]
[310996854,1704845441571,-888.4011,0.00037648,6]
[310996855,1704845441581,-2878.20391048,0.00037729,8]
[310996856,1704845441591,-357.0071781,0.00037729,5]
[310996857,1704845441601,-176.941457,0.00037729,4]
[310996858,1704845441611,-7637.69166708,0.00037729,7]
[310996859,1704845441621,-184.07313099,0.00037729,4]
[310996860,1704845441630,-325.13052556,0.00037729,4]
[310996861,1704845441640,-888.4011,0.00037748,6]
[310996862,1704845441650,-2000.0,0.000378,2]
[310996863,1704845441660,-1000.0,0.00037808,10]
[310996864,1704845441670,-4712.98,0.00037808,2]
[310996865,1704845441679,-888.4011,0.00037848,6]
[310996866,1704845441689,-10959.74636819,0.00037848,2]
[310996867,1704845441699,-967.152292,0.00037856,2]
[310996868,1704845441709,-152.0,0.00037866,7]
[310996869,1704845441719,-409.0,0.0003789,3]
[310996870,1704845441729,-340.62,0.000379,2]
[310996871,1704845441739,-679378.479922,0.000379,2]
[310996872,1704845441750,-888.4011,0.00037948,6]
[310996873,1704845441760,-151.37985866,0.00037955,7]
[310996874,1704845441770,-364.35,0.00037975,2]
[310996875,1704845441780,-442.29163276,0.00037999,4]
[310996876,1704845441790,-388.39783685,0.00037999,4]
[310996877,1704845441800,-396.83779227,0.00037999,4]
[310996878,1704845441809,-251.74708251,0.00037999,4]
[310996879,1704845441819,-437.941652,0.00037999,4]
[310996880,1704845441829,-368.37309116,0.00037999,4]
[310996881,1704845441839,-472.42594318,0.00037999,4]
[310996882,1704845441848,-246.37264118,0.00037999,4]
[310996883,1704845441858,-167.83138834,0.00037999,4]
[310996884,1704845441868,-500.0,0.00037999,4]
[310996885,1704845441878,-472.42594317,0.00037999,4]
[310996886,1704845441888,-442.37294055,0.00037999,4]
[310996887,1704845441898,-197.15598527,0.00037999,7]
[310996888,1704845441908,-1658.77813122,0.00038,4]
[310996889,1704845441917,-5000.0,0.00038,30]
[310996890,1704845441927,-5300.0,0.00038,30]
[310996891,1704845441936,-765.9326413,0.00038,2]
[310996892,1704845441946,-765.9326413,0.00038,2]
[310996894,1704845441956,-765.9326413,0.00038,2]
[310996896,1704845441966,-765.9326413,0.00038,2]
[310996897,1704845441975,-765.9326413,0.00038,2]
[310996899,1704845441985,-888.4011,0.00038048,8]
[310996901,1704845441995,-1000.0,0.00038082,12]
[310996903,1704845442005,-226.0,0.0003809,3]
[310996904,1704845442016,-155.90564938,0.00038091,7]
[310996906,1704845442025,-151.0,0.00038096,2]
[310996907,1704845442035,-250.49088,0.00038096,2]
[310996909,1704845442045,-996.0,0.000381,2]
[310996911,1704845442054,-967.152292,0.00038105,2]
[310996913,1704845442064,-157.46353718,0.00038109,7]
[310996914,1704845442074,-200.42228208,0.00038146,2]
[310996916,1704845442084,-200.66411042,0.00038147,4]
[310996918,1704845442094,-888.4011,0.00038148,8]
[310996920,1704845442103,-308207.13559435,0.00038149,4]
[310996921,1704845442113,-2763.86633725,0.00038151,11]
[310996923,1704845442123,-67481.78166342,0.00038151,12]
[310996925,1704845442133,-9403.76570222,0.00038151,11]
[310996927,1704845442143,-18923.16765336,0.00038151,11]
[310996929,1704845442153,-157.31,0.000382,3]
[310996930,1704845442162,-157.31,0.000382,3]
[310996932,1704845442172,-157.31,0.000382,3]
[310996934,1704845442182,-157.31,0.000382,3]
[310996936,1704845442191,-157.31,0.000382,3]
[310996937,1704845442201,-157.31,0.000382,3]
[310996939,1704845442211,-888.4011,0.00038248,8]
[310996941,1704845442221,-157.46353718,0.00038339,7]
[310996942,1704845442231,-888.4011,0.00038348,8]
[310996944,1704845442241,-3189.66,0.00038352,2]
[310996946,1704845442251,-967.152292,0.00038354,2]
[310996948,1704845442261,-666.0,0.00038356,2]
[310996949,1704845442271,-1000.0,0.00038356,14]
[310996951,1704845442281,-165.3229978,0.00038356,7]
[310996953,1704845442290,-161.93002219,0.00038356,7]
[310996955,1704845442301,-153.84,0.00038356,2]
[310996957,1704845442311,-2500.0,0.00038356,14]
[310996959,1704845442324,-203.0,0.00038371,26]
[310996961,1704845442333,-8000.0,0.000384,2]
[310996962,1704845442343,-888.4011,0.00038448,8]
[310996964,1704845442352,-44827.28484198,0.000385,7]
[310996966,1704845442362,-888.4011,0.00038548,8]
[310996968,1704845442372,-967.152292,0.00038603,2]
[310996970,1704845442383,-1000.0,0.0003863,16]
[310996972,1704845442393,-152.66700614,0.00038634,7]
[310996973,1704845442403,-888.4011,0.00038648,8]
[310996975,1704845442414,-150.0,0.00038701,7]
[310996977,1704845442424,-302.0,0.00038737,4]
[310996979,1704845442436,-888.4011,0.00038748,8]
[310996981,1704845442445,-39850.52755597,0.000388,2]
[310996983,1704845442455,-1000.0,0.000388,2]
[310996984,1704845442466,-14987.45308177,0.000388,30]
[310996986,1704845442475,-22875.84468121,0.000388,4]
[310996988,1704845442485,-2000.0,0.000388,2]
[310996990,1704845442495,-888.4011,0.00038848,8]
[310996992,1704845442504,-967.152292,0.00038852,2]
[310996994,1704845442516,-1000.0,0.00038904,18]
[310996995,1704845442526,-150.0,0.00038917,2]
[310996997,1704845442535,-150.0,0.00038947,2]
[310996999,1704845442546,-888.4011,0.00038948,8]
[310997001,1704845442556,-281.54706286,0.0003898,2]
[310997003,1704845442565,-431.74556147,0.00038988,2]
[310997004,1704845442576,-328.23454993,0.00039,4]
[310997006,1704845442586,-1112.36550744,0.00039,2]
[310997008,1704845442595,-126304.40494945,0.00039,2]
[310997010,1704845442606,-196.69246782,0.00039,4]
[310997012,1704845442615,-700.0,0.00039,3]
[310997014,1704845442625,-1200.0,0.00039,40]
[310997015,1704845442635,-1086.3,0.00039,3]
[310997017,1704845442645,-1086.3,0.00039,3]
[310997019,1704845442654,-1086.3,0.00039,3]
[310997021,1704845442665,-1086.3,0.00039,3]
[310997023,1704845442675,-1086.3,0.00039,3]
[310997025,1704845442685,-1086.3,0.00039,3]
[310997026,1704845442695,-1086.3,0.00039,3]
[310997028,1704845442704,-1086.3,0.00039,3]
[310997030,1704845442714,-1086.3,0.00039,3]
[310997032,1704845442724,-1086.3,0.00039,3]
[310997034,1704845442734,-1086.3,0.00039,3]
[310997036,1704845442744,-1086.3,0.00039,3]
[310997038,1704845442754,-1086.3,0.00039,3]
[310997039,1704845442766,-1086.3,0.00039,3]
[310997041,1704845442775,-1086.3,0.00039,3]
[310997043,1704845442786,-1086.3,0.00039,3]
[310997045,1704845442795,-1086.3,0.00039,3]
[310997047,1704845442806,-1086.3,0.00039,3]
[310997049,1704845442816,-1086.3,0.00039,3]
[310997067,1704845442932,-1086.3,0.00039,3]
[310997070,1704845442943,-150.0,0.00039046,7]
[310997073,1704845442952,-888.4011,0.00039048,8]
[310997077,1704845442962,-150.0,0.00039063,2]
[310997080,1704845442972,-151.16643292,0.0003907,7]
[310997083,1704845442982,-967.152292,0.000391,2]
[310997085,1704845442992,-500.0,0.000391,3]
[310997088,1704845443002,-1541.28906699,0.00039111,2]
[310997090,1704845443013,-888.4011,0.00039148,8]
[310997092,1704845443024,-9680.58,0.00039151,2]
[310997094,1704845443034,-157.46353718,0.00039153,7]
[310997096,1704845443044,-1000.0,0.00039178,20]
[310997098,1704845443053,-152.08,0.00039178,2]
[310997101,1704845443062,-1422.597,0.00039179,2]
[310997104,1704845443072,-1915.2,0.00039179,2]
[310997107,1704845443081,-375.406,0.00039179,2]
[310997110,1704845443090,-2268.0,0.00039179,2]
[310997113,1704845443100,-2899.0,0.00039179,2]
[310997116,1704845443110,-842.053,0.00039179,2]
[310997119,1704845443119,-777.214,0.00039179,2]
[310997121,1704845443128,-1027.0,0.00039179,2]
[310997124,1704845443138,-161.72403562,0.00039243,2]
[310997126,1704845443148,-888.4011,0.00039248,8]
[310997129,1704845443158,-199.81,0.0003926,2]
[310997132,1704845443167,-153.84,0.00039269,2]
[310997135,1704845443176,-150.0,0.00039312,2]
[310997138,1704845443185,-888.4011,0.00039348,8]
[310997141,1704845443195,-967.152292,0.00039349,2]
[310997144,1704845443204,-604.0,0.00039388,7]
[310997149,1704845443215,-150.0,0.00039392,7]
[310997151,1704845443222,-888.4011,0.00039448,8]
[310997153,1704845443230,-1000.0,0.00039452,22]
[310997155,1704845443238,-150.0,0.00039509,2]
[310997157,1704845443248,-227.92481117,0.00039514,2]
[310997159,1704845443257,-150.0,0.00039525,2]
[310997161,1704845443271,-888.4011,0.00039548,8]
[310997163,1704845443280,-150.0,0.0003956,2]
[310997165,1704845443290,-150.0,0.00039567,2]
[310997167,1704845443300,-172.498787,0.00039588,2]
[310997169,1704845443309,-172.498787,0.00039588,2]
[310997171,1704845443319,-172.498787,0.00039588,2]
[310997173,1704845443330,-171.288262,0.00039588,2]
[310997175,1704845443340,-373.420647,0.00039588,2]
[310997177,1704845443350,-967.152292,0.00039598,2]
[310997179,1704845443359,-500.0,0.00039603,2]
[310997181,1704845443369,-3189.66,0.0003963,2]
[310997183,1704845443379,-888.4011,0.00039648,8]
[310997185,1704845443389,-150.0,0.00039658,2]
[310997187,1704845443398,-150.0,0.00039688,2]
[310997189,1704845443407,-150.0,0.00039699,2]
[310997191,1704845443416,-150.0,0.00039699,2]
[310997193,1704845443426,-313.91,0.00039699,2]
[310997195,1704845443436,-833.74,0.00039699,2]
[310997197,1704845443446,-313.91,0.00039699,2]
[310997199,1704845443455,-810.00298093,0.000397,2]
[310997201,1704845443465,-6117.0,0.000397,2]
[310997203,1704845443474,-150.0,0.00039707,2]
[310997205,1704845443484,-500.0,0.00039725,10]
[310997207,1704845443494,-1000.0,0.00039726,24]
[310997209,1704845443504,-888.4011,0.00039748,8]
[310997211,1704845443516,-152.0,0.00039772,8]
[310997213,1704845443526,-165.91922559,0.00039772,5]
[310997215,1704845443535,-150.0,0.00039785,2]
[310997217,1704845443545,-492.88159072,0.000398,2]
[310997219,1704845443563,-507.11840928,0.000398,2]
[310997222,1704845443573,-980.48609171,0.000398,4]
[310997224,1704845443582,-2000.0,0.000398,2]
[310997226,1704845443591,-203.0,0.00039813,28]
[310997228,1704845443601,-150.0,0.00039825,2]
[310997230,1704845443610,-967.152292,0.00039847,2]
[310997232,1704845443620,-888.4011,0.00039848,10]
[310997234,1704845443629,-150.0,0.00039854,2]
[310997236,1704845443639,-150.0,0.00039865,2]
[310997238,1704845443648,-1000.0,0.00039873,2]
[310997240,1704845443658,-150.0,0.00039878,2]
[310997242,1704845443667,-842.0,0.0003989,3]
[310997244,1704845443677,-275.7068033,0.000399,4]
[310997246,1704845443686,-888.4011,0.00039948,8]
[310997248,1704845443696,-888.4011,0.00039948,10]
[310997250,1704845443705,-150.0,0.00039965,2]
[310997252,1704845443714,-160.03,0.00039973,2]
[310997254,1704845443724,-662.52800092,0.0003998,3]
[310997256,1704845443734,-784.58105283,0.0003998,3]
[310997258,1704845443743,-603.81761597,0.0003998,3]
[310997260,1704845443752,-157.5,0.0003998,3]
[310997262,1704845443761,-150.0,0.00039981,2]
[310997264,1704845443771,-455.0,0.0003999,3]
[310997266,1704845443781,-150.0,0.00039993,2]
[310997268,1704845443791,-200.42228208,0.00039997,2]
[310997270,1704845443801,-150.0,0.00039998,2]
[310997272,1704845443810,-150.0,0.00039998,2]
[310997274,1704845443819,-150.0,0.00039998,2]
[310997276,1704845443829,-150.0,0.00039998,2]
[310997278,1704845443839,-233.03870211,0.00039999,7]
[310997280,1704845443849,-189.5535569,0.00039999,7]
[310997282,1704845443858,-170.07333954,0.00039999,7]
[310997284,1704845443867,-187.68927943,0.00039999,7]
[310997286,1704845443876,-189.58840309,0.00039999,7]
[310997288,1704845443885,-935209.00135465,0.0004,2]
[310997291,1704845443897,-578914.19288253,0.0004,2]
[310997292,1704845443924,-1285.22235789,0.0004,2]
[310997293,1704845443936,-951.26132272,0.0004,2]
[310997294,1704845445209,-336.94669681,0.0004,2]
[310997295,1704845445221,-2405.2487479,0.0004,2]
[310997296,1704845445240,-514.01924794,0.0004,2]
[310997297,1704845445272,-318.01589258,0.0004,2]
[310997325,1704845446045,-542.40756237,0.0004,2]
[310997326,1704845446061,-916.4467558,0.0004,2]
[310997327,1704845446072,-659.40831333,0.0004,2]
[310997328,1704845446090,-9837.2025556,0.0004,2]
[310997329,1704845448185,-376.52347576,0.00025,2]
[310997330,1704845448195,-377.79144996,0.0004,2]
[310997331,1704845448207,-956.8246217,0.0004,2]
[310997332,1704845448219,-635.84286283,0.0004,2]
[310997333,1704845448233,-1041.30392929,0.0004,2]
[310997334,1704845448244,-966.16924044,0.0004,2]
[310997335,1704845448256,-102.94855973,0.0004,2]
[310997336,1704845448270,-1200.0,0.0004,41]
[310997337,1704845448282,-9354.55464689,0.0004,4]
[310997338,1704845448294,-1725.39303614,0.0004,4]
[310997339,1704845448376,-1037.72523618,0.0004,4]
[310997340,1704845448389,-342.39560904,0.0004,4]
[310997341,1704845448403,-9536.34611341,0.0004,4]
[310997342,1704845448426,-29315.63639781,0.0004,4]
[310997343,1704845448450,-738.68415017,0.0004,4]
[310997344,1704845448619,-1996.852972,0.0004,4]
[310997345,1704845452303,587.2284006,0.00021812,2]
[310997348,1704845621745,2208.0,0.00022454,2]
[310997349,1704845852507,255.36609276,0.00020378,2]
[310997364,1704846555113,-765.33424633,0.00022794,2]
[310997365,1704846555136,-155.79139114,0.00022795,2]
[310997366,1704846555156,-10506.06029105,0.00022892,2]
[310997367,1704846555177,-267.93034813,0.00022893,2]
[310997368,1704846573357,-421.00431865,0.00022893,2]
[310997375,1704846632857,-6677.37593502,0.00022893,2]
[310997376,1704846632867,-764.41291952,0.00022893,2]
[310997377,1704846632877,-283.29171967,0.00022894,2]
[310997378,1704846632887,-172.31773065,0.00022895,2]
[310997379,1704846632900,-4448.13567168,0.00022895,2]
[310997380,1704846632912,-474.01370317,0.00022895,2]
[310997381,1704846632924,-2835.22187367,0.00022895,2]
[310997382,1704846632936,-736.9869424,0.00022895,2]
[310997383,1704846632949,-302.6950927,0.00022895,2]
[310997384,1704846632979,-901.2153439,0.00022895,2]
[310997385,1704846632992,-518.79841674,0.00022895,2]
[310997386,1704846633006,-456.31690773,0.00022895,2]
[310997387,1704846633119,-300.0,0.00022895,2]
[310997388,1704846633131,-1030.55035821,0.00022895,2]
[310997389,1704846633164,-5695.33193837,0.00022895,2]
[310997390,1704846633176,-546.54532813,0.00022895,2]
[310997391,1704846633189,-517.47529843,0.00022895,2]
[310997398,1704846633282,-3983.88800958,0.00022895,2]
[310997402,1704846633297,-241.02314361,0.00022895,2]
[310997405,1704846633309,-527.82416345,0.00022897,2]
[310997408,1704846633319,-571.26033943,0.00022897,2]
[310997413,1704846633333,-354.6904842,0.00022897,2]
[310997416,1704846633347,-603.38594653,0.00022897,2]
[310997468,1704846638346,-734.9524581,0.00022897,2]
[310997469,1704846638355,-217.38212706,0.00022897,2]
[310997470,1704846638364,-2673.34921563,0.00022898,2]
[310997471,1704846638420,-1942.92168178,0.00022898,2]
[310997472,1704846638429,-155.0,0.00022898,2]
[310997473,1704846638439,-1000.0,0.00022899,2]
[310997474,1704846638448,-38599.4474,0.00022899,2]
[310997475,1704846638458,-117304.342,0.00022899,2]
[310997476,1704846638467,-1735.11922944,0.000229,2]
[310997477,1704846638477,-932.39338065,0.00023,2]
[310997478,1704846638486,-903.11,0.00023,2]
[310997479,1704846638495,-200.66411042,0.00024,2]
[310997480,1704846638505,-4066.26,0.00024,2]
[310997481,1704846638514,-599.27,0.00024,2]
[310997482,1704846638523,-155.79139109,0.00024671,2]
[310997483,1704846638533,-167.05182833,0.00025,2]
[310997484,1704846638542,-1246.32796092,0.00025,2]
[310997485,1704846638551,-155.79139109,0.00026546,2]
[310997486,1704846638561,-196.62,0.00026979,2]
[310997487,1704846638570,-150.0,0.00027039,2]
[310997488,1704846638580,-150.0,0.00027121,2]
[310997489,1704846638589,-153.89,0.00027141,2]
[310997490,1704846638599,-871.22,0.00027184,2]
[310997491,1704846638608,-389.2,0.00027187,2]
[310997492,1704846638618,-153.89,0.0002725,2]
[310997493,1704846638627,-23900.0,0.0002727,2]
[310997494,1704846638637,-2577.68,0.00027304,2]
[310997495,1704846638646,-250.0,0.0002734,2]
[310997496,1704846638655,-153.89,0.00027358,2]
[310997497,1704846638665,-286.64,0.00027377,2]
[310997498,1704846638674,-500.0,0.00027397,2]
[310997499,1704846638683,-167.27,0.00027397,2]
[310997501,1704846638693,-750.0,0.000274,2]
[310997503,1704846638702,-250.0,0.00027415,2]
[310997504,1704846638711,-250.0,0.00027438,2]
[310997506,1704846638722,-153.89,0.00027467,2]
[310997508,1704846638731,-153.89,0.00027576,2]
[310997510,1704846638741,-153.89,0.00027685,2]
[310997512,1704846638752,-207.0,0.00027737,2]
[310997514,1704846638762,-153.89,0.00027794,2]
[310997516,1704846638773,-194.03,0.00027844,2]
[310997518,1704846638782,-153.89,0.00027902,2]
[310997520,1704846638792,-202.635464,0.00028,2]
[310997522,1704846638802,-999.99,0.00028,2]
[310997524,1704846638812,-492.65,0.00028,2]
[310997526,1704846638826,-5852.6,0.00028,2]
[310997528,1704846638836,-153.89,0.00028011,2]
[310997530,1704846638845,-153.89,0.0002812,2]
[310997532,1704846638855,-153.89,0.00028229,2]
[310997534,1704846638864,-153.89,0.00028338,2]
[310997536,1704846638874,-155.79139109,0.00028422,2]
[310997538,1704846638884,-153.89,0.00028446,2]
[310997540,1704846638894,-153.89,0.00028555,2]
[310997542,1704846638904,-207.0,0.00028716,2]
[310997544,1704846638915,-197.63,0.00029174,2]
[310997546,1704846638924,-160.03,0.00029219,2]
[310997548,1704846638933,-170.6,0.00029317,2]
[310997550,1704846638942,-389.2,0.00029451,2]
[310997552,1704846638951,-483.25479146,0.00029518,2]
[310997554,1704846638960,-196.62,0.00029676,2]
[310997556,1704846638970,-207.0,0.00029694,2]
[310997558,1704846638979,-2398.92,0.00029863,2]
[310997560,1704846638988,-162.59077977,0.000299,4]
[310997563,1704846639000,-677.34550316,0.0003,4]
[310997565,1704846639008,-155.0,0.0003,2]
[310997567,1704846639017,-580.80321114,0.0003,2]
[310997569,1704846639026,-333.56891715,0.0003,4]
[310997571,1704846639035,-13293.44639488,0.0003,4]
[310997573,1704846639044,-271539.13240832,0.0003,4]
[310997575,1704846639060,-347.697945,0.0003,4]
[310997581,1704846639105,-36320.30524103,0.0003,4]
[310997583,1704846639114,-200.0,0.0003,7]
[310997585,1704846639123,-200.0,0.0003,7]
[310997587,1704846639132,-200.0,0.0003,7]
[310997589,1704846639142,-450.0,0.0003002,3]
[310997591,1704846639151,-170.18,0.00030085,2]
[310997593,1704846639161,-201.79,0.000302,2]
[310997595,1704846639170,-155.79139109,0.00030298,2]
[310997597,1704846639179,-153.84,0.00030511,2]
[310997599,1704846639189,-871.22,0.00030582,2]
[310997601,1704846639198,-207.0,0.00030673,2]
[310997603,1704846639208,-151.0,0.00030916,120]
[310997605,1704846639218,-155.0,0.00031,2]
[310997607,1704846639227,-197.98548711,0.0003139,2]
[310997609,1704846639236,-37559.0,0.000314,2]
[310997611,1704846639245,-3698.0,0.000314,2]
[310997613,1704846639254,-153.84,0.00031435,2]
[310997615,1704846639263,-425.77,0.00031507,2]
[310997617,1704846639273,-151.0,0.00031547,30]
[310997619,1704846639282,-165.05,0.00031644,2]
[310997621,1704846639292,-207.0,0.00031651,2]
[310997623,1704846639301,-389.2,0.00031715,2]
[310997625,1704846639311,-155.88399717,0.00031997,2]
[310997627,1704846639320,-688444.33225814,0.00032,2]
[310997629,1704846639329,-150.0,0.00032,2]
[310997631,1704846639339,-1802.90872975,0.00032,4]
[310997634,1704846639348,-487.424818,0.00032,4]
[310997636,1704846639358,-261.10253064,0.00032,2]
[310997638,1704846639367,-297.1247831,0.00032,4]
[310997639,1704846639376,-155.79139109,0.00032173,2]
[310997642,1704846639388,-151.0,0.00032191,7]
[310997644,1704846639397,-153.84,0.0003236,2]
[310997646,1704846639406,-155.0,0.0003237,2]
[310997664,1704846639565,-155.0,0.000326,4]
[310997666,1704846639574,-207.0,0.00032629,2]
[310997668,1704846639584,-197.63,0.00032821,2]
[310997670,1704846639593,-151.0,0.00032848,4]
[310997672,1704846639603,-790.81,0.00032877,15]
[310997674,1704846639612,-1454.26218209,0.00033,5]
[310997676,1704846639622,-153.84,0.00033285,2]
[310997678,1704846639631,-163.01,0.00033471,2]
[310997680,1704846639640,-151.0,0.00033518,2]
[310997682,1704846639650,-207.0,0.00033608,2]
[310997685,1704846639659,-150.41,0.0003372,2]
[310997686,1704846639668,-157.40802707,0.0003374,2]
[310997689,1704846639678,-150.41,0.00033918,2]
[310997691,1704846639687,-155.27955161,0.00033946,4]
[310997692,1704846639696,-389.2,0.00033979,2]
[310997695,1704846639706,-871.22,0.0003398,2]
[310997696,1704846639716,-1000.0,0.00034,4]
[310997698,1704846639725,-801.48193066,0.00034,4]
[310997700,1704846639735,-155.79139109,0.00034049,2]
[310997702,1704846639744,-150.41,0.00034116,2]
[310997704,1704846639755,-153.84,0.00034209,2]
[310997706,1704846639764,-150.41,0.00034315,2]
[310997709,1704846639773,-1027.43,0.000345,2]
[310997711,1704846639783,-1027.43,0.000345,2]
[310997713,1704846639793,-157.32,0.000345,2]
[310997715,1704846639802,-157.32,0.000345,2]
[310997717,1704846639811,-150.41,0.00034513,2]
[310997719,1704846639825,-3189.66,0.00034521,2]
[310997721,1704846639834,-207.0,0.00034586,2]
[310997723,1704846639843,-180.0,0.00034658,2]